lending/lending_fUSD_20240112
["ID","MTS","AMOUNT","RATE_DAILY","PERIOD"]
[311399923,1705077077953,-500.0,0.00023608,2]
[311399924,1705077077964,-666.1,0.00023608,2]
[311399925,1705077077974,-500.0,0.00023608,2]
[311399926,1705077077983,-500.0,0.00023608,2]
[311399927,1705077077992,-500.0,0.00023608,2]
[311399928,1705077078002,-500.0,0.00023608,2]
[311399929,1705077078012,-500.0,0.00023608,2]
[311399930,1705077078021,-500.0,0.00023608,2]
[311399931,1705077078031,-500.0,0.00023608,2]
[311399932,1705077078041,-500.0,0.00023608,2]
[311399933,1705077078051,-500.0,0.00023608,2]
[311399934,1705077078060,-500.0,0.00023608,2]
[311399935,1705077078070,-596.5039068,0.00023608,2]
[311399936,1705077078080,-500.0,0.00023608,2]
[311399937,1705077078090,-500.0,0.00023608,2]
[311399938,1705077078099,-671.18,0.00023608,2]
[311399939,1705077078108,-500.0,0.00023608,2]
[311399940,1705077078117,-500.0,0.00023608,2]
[311399941,1705077078127,-500.0,0.00023608,2]
[311399942,1705077078137,-500.0,0.00023608,2]
[311399943,1705077078148,-500.0,0.00023608,2]
[311399944,1705077078157,-500.0,0.00023608,2]
[311399945,1705077078169,-500.0,0.00023608,2]
[311399946,1705077078180,-599.35,0.00023608,2]
[311399947,1705077078189,-500.0,0.00023608,2]
[311399948,1705077078199,-500.0,0.00023608,2]
[311399949,1705077078209,-500.0,0.00023608,2]
[311399950,1705077078219,-500.0,0.00023608,2]
[311399951,1705077078229,-500.0,0.00023608,2]
[311399952,1705077078239,-500.0,0.00023608,2]
[311399953,1705077078248,-500.0,0.00023608,2]
[311399954,1705077078258,-1194.85,0.00023608,2]
[311399955,1705077078267,-500.0,0.00023608,2]
[311399956,1705077078277,-500.0,0.00023608,2]
[311399957,1705077078286,-500.0,0.00023608,2]
[311399958,1705077078296,-500.0,0.00023608,2]
[311399959,1705077078305,-500.0,0.00023608,2]
[311399960,1705077078315,-835.11,0.00023608,2]
[311399961,1705077078325,-500.0,0.00023608,2]
[311399962,1705077078335,-500.0,0.00023608,2]
[311399963,1705077078345,-500.0,0.00023608,2]
[311399964,1705077078355,-500.0,0.00023608,2]
[311399965,1705077078365,-271.6463443,0.00023608,2]
[311399966,1705077078375,-500.0,0.00023608,2]
[311399967,1705077078385,-500.0,0.00023608,2]
[311399968,1705077078395,-500.0,0.00023608,2]
[311399969,1705077078405,-500.0,0.00023608,2]
[311399970,1705077078416,-910.05,0.00023608,2]
[311399971,1705077078425,-500.0,0.00023608,2]
[311399972,1705077078435,-500.0,0.00023608,2]
[311399973,1705077078445,-500.0,0.00023608,2]
[311399974,1705077078454,-500.0,0.00023608,2]
[311399975,1705077078464,-536.91861939,0.00023608,2]
[311399976,1705077078474,-500.0,0.00023608,2]
[311399977,1705077078483,-772.68,0.00023608,2]
[311399978,1705077078495,-500.0,0.00023608,2]
[311399979,1705077078504,-500.0,0.00023608,2]
[311399980,1705077078516,-500.0,0.00023608,2]
[311399981,1705077078526,-495.13872754,0.00023608,2]
[311399982,1705077078535,-500.0,0.00023608,2]
[311399983,1705077078705,-500.0,0.00023608,2]
[311399984,1705077078715,-500.0,0.00023608,2]
[311399985,1705077078725,-500.0,0.00023608,2]
[311399986,1705077078735,-500.0,0.00023608,2]
[311399987,1705077078744,-500.0,0.00023608,2]
[311399988,1705077078754,-500.0,0.00023608,2]
[311399989,1705077078763,-500.0,0.00023608,2]
[311399990,1705077078773,-500.0,0.00023608,2]
[311399991,1705077078782,-500.0,0.00023608,2]
[311399992,1705077078792,-500.0,0.00023608,2]
[311399993,1705077078801,-758.57,0.00023608,2]
[311399994,1705077078810,-747.06,0.00023608,2]
[311399995,1705077078821,-500.0,0.00023608,2]
[311399996,1705077078831,-500.0,0.00023608,2]
[311399997,1705077078841,-527.19200481,0.00023608,2]
[311399998,1705077078851,-500.0,0.00023608,2]
[311399999,1705077078860,-500.0,0.00023608,2]
[311400000,1705077078870,-500.0,0.00023608,2]
[311400001,1705077078879,-500.0,0.00023608,2]
[311400002,1705077078889,-500.0,0.00023608,2]
[311400003,1705077078898,-500.0,0.00023608,2]
[311400004,1705077078907,-500.0,0.00023608,2]
[311400005,1705077078918,-500.0,0.00023608,2]
[311400006,1705077078928,-500.0,0.00023608,2]
[311400007,1705077078938,-465.53627495,0.00023608,2]
[311400008,1705077078947,-500.0,0.00023608,2]
[311400009,1705077078957,-500.0,0.00023608,2]
[311400010,1705077078966,-500.0,0.00023608,2]
[311400011,1705077078976,-500.0,0.00023608,2]
[311400012,1705077078985,-1049.62,0.00023608,2]
[311400013,1705077078995,-500.0,0.00023608,2]
[311400014,1705077079004,-500.0,0.00023608,2]
[311400015,1705077079013,-500.0,0.00023608,2]
[311400016,1705077079023,-500.0,0.00023608,2]
[311400017,1705077079032,-500.0,0.00023608,2]
[311400018,1705077079042,-500.0,0.00023608,2]
[311400019,1705077079051,-500.0,0.00023608,2]
[311400020,1705077079061,-500.0,0.00023608,2]
[311400021,1705077079071,-500.0,0.00023608,2]
[311400022,1705077079081,-500.0,0.00023608,2]
[311400023,1705077079091,-500.0,0.00023608,2]
[311400024,1705077079101,-500.0,0.00023608,2]
[311400025,1705077079110,-500.0,0.00023608,2]
[311400026,1705077079120,-500.0,0.00023608,2]
[311400027,1705077079129,-500.0,0.00023608,2]
[311400028,1705077079139,-155.9238322,0.00023608,2]
[311400029,1705077079149,-500.0,0.00023608,2]
[311400030,1705077079159,-500.0,0.00023608,2]
[311400031,1705077079171,-500.0,0.00023608,2]
[311400032,1705077079182,-500.0,0.00023608,2]
[311400033,1705077079192,-500.0,0.00023608,2]
[311400034,1705077079202,-1085.86,0.00023608,2]
[311400035,1705077079212,-500.0,0.00023608,2]
[311400036,1705077079222,-500.0,0.00023608,2]
[311400037,1705077079232,-767.7,0.00023608,2]
[311400038,1705077079242,-515.51,0.00023608,2]
[311400039,1705077079251,-500.0,0.00023608,2]
[311400040,1705077079261,-500.0,0.00023608,2]
[311400041,1705077079271,-500.0,0.00023608,2]
[311400042,1705077079281,-500.0,0.00023608,2]
[311400043,1705077079291,-500.0,0.00023608,2]
[311400044,1705077079301,-500.0,0.00023608,2]
[311400045,1705077079310,-500.0,0.00023608,2]
[311400046,1705077079323,-500.0,0.00023608,2]
[311400047,1705077079334,-500.0,0.00023608,2]
[311400048,1705077079343,-678.28,0.00023608,2]
[311400049,1705077079353,-500.0,0.00023608,2]
[311400050,1705077079363,-500.0,0.00023608,2]
[311400051,1705077079373,-3039.1,0.00023608,2]
[311400052,1705077079383,-676.63,0.00023608,2]
[311400053,1705077079393,-500.0,0.00023608,2]
[311400054,1705077079404,-500.0,0.00023608,2]
[311400055,1705077079417,-500.0,0.00023608,2]
[311400056,1705077079427,-500.0,0.00023608,2]
[311400057,1705077079440,-500.0,0.00023608,2]
[311400058,1705077079450,-500.0,0.00023608,2]
[311400059,1705077079459,-500.0,0.00023608,2]
[311400060,1705077079469,-500.0,0.00023608,2]
[311400061,1705077079479,-500.0,0.00023608,2]
[311400062,1705077079489,-500.0,0.00023608,2]
[311400063,1705077079499,-500.0,0.00023608,2]
[311400064,1705077079509,-500.0,0.00023608,2]
[311400065,1705077079519,-902.95,0.00023608,2]
[311400066,1705077079530,-500.0,0.00023608,2]
[311400067,1705077079540,-500.0,0.00023608,2]
[311400068,1705077079550,-500.0,0.00023608,2]
[311400069,1705077079560,-500.0,0.00023608,2]
[311400070,1705077079569,-500.0,0.00023608,2]
[311400071,1705077079578,-500.0,0.00023608,2]
[311400072,1705077079588,-500.0,0.00023608,2]
[311400073,1705077079598,-605.4,0.00023608,2]
[311400074,1705077079608,-500.0,0.00023608,2]
[311400075,1705077079618,-500.0,0.00023608,2]
[311400076,1705077079627,-500.0,0.0002361,2]
[311400077,1705077079637,-500.0,0.0002361,2]
[311400078,1705077079646,-500.0,0.00023611,2]
[311400079,1705077079655,-500.0,0.00023611,2]
[311400080,1705077079668,-500.0,0.00023611,2]
[311400081,1705077079678,-153.88,0.00023636,2]
[311400082,1705077079690,-195.22,0.00023649,2]
[311400083,1705077079699,-151.82,0.00023699,2]
[311400084,1705077079709,-332.08,0.00023716,2]
[311400085,1705077079719,-150.4,0.00023717,2]
[311400086,1705077079729,-195.22,0.00023763,2]
[311400087,1705077079738,-500.0,0.00023799,2]
[311400088,1705077079748,-332.08,0.00023832,2]
[311400089,1705077079757,-168.86,0.00023836,2]
[311400090,1705077079766,-151.82,0.00023853,2]
[311400091,1705077079776,-500.0,0.00023875,2]
[311400092,1705077079785,-500.0,0.00023875,2]
[311400093,1705077079795,-625.39,0.00023875,2]
[311400094,1705077079805,-500.0,0.00023875,2]
[311400095,1705077079816,-1429.49,0.00023876,2]
[311400096,1705077079825,-9945.1,0.00023876,2]
[311400097,1705077079835,-978.78,0.00023876,2]
[311400098,1705077079845,-1378.24,0.00023876,2]
[311400099,1705077079854,-867.37,0.00023876,2]
[311400100,1705077079863,-576.62,0.00023876,2]
[311400101,1705077079873,-1895.37,0.00023876,2]
[311400102,1705077079882,-741.66,0.00023876,2]
[311400103,1705077079891,-594.56,0.00023876,2]
[311400104,1705077079900,-28063.97,0.00023876,2]
[311400105,1705077079910,-500.0,0.00023876,2]
[311400106,1705077079920,-1179.37,0.00023876,2]
[311400107,1705077079930,-1161.83,0.00023876,2]
[311400108,1705077079940,-16126.91,0.00023876,2]
[311400109,1705077079950,-5776.69,0.00023876,2]
[311400110,1705077079959,-854.65,0.00023876,2]
[311400111,1705077079969,-788.93,0.00023876,2]
[311400112,1705077079979,-500.0,0.00023876,2]
[311400113,1705077079989,-846.93,0.00023876,2]
[311400114,1705077079998,-500.0,0.00023876,2]
[311400115,1705077080008,-2347.67,0.00023876,2]
[311400116,1705077080018,-944.74,0.00023876,2]
[311400117,1705077080028,-556.66,0.00023876,2]
[311400118,1705077080040,-915.17,0.00023876,2]
[311400119,1705077080051,-801.65,0.00023876,2]
[311400120,1705077080062,-11316.9,0.00023876,2]
[311400121,1705077080074,-1188.34,0.00023876,2]
[311400122,1705077080085,-1285.67,0.00023876,2]
[311400123,1705077080099,-500.0,0.00023876,2]
[311400124,1705077080111,-520.06,0.00023876,2]
[311400125,1705077080122,-1592.48,0.00023876,2]
[311400126,1705077080133,-575.88,0.00023876,2]
[311400127,1705077080144,-1869.56,0.00023876,2]
[311400128,1705077080156,-1025.29,0.00023876,2]
[311400129,1705077080175,-765.07,0.00023876,2]
[311400130,1705077080186,-1932.17,0.00023876,2]
[311400131,1705077080198,-500.0,0.00023876,2]
[311400132,1705077080213,-156.54147557,0.00023876,2]
[311400133,1705077080225,-825.06,0.00023876,2]
[311400134,1705077080236,-1309.88,0.00023876,2]
[311400135,1705077080247,-195.22,0.00023877,2]
[311400136,1705077080258,-500.0,0.00023878,2]
[311400137,1705077080269,-1331.39,0.00023878,2]
[311400138,1705077080280,-1601.07,0.00023878,2]
[311400139,1705077080292,-1448.76,0.00023878,5]
[311400140,1705077080307,-553.23,0.00023878,2]
[311400141,1705077080318,-6027.14,0.00023878,2]
[311400142,1705077080329,-8057.22,0.00023878,2]
[311400143,1705077080341,-2024.92,0.00023878,2]
[311400144,1705077080352,-839.27,0.00023878,2]
[311400145,1705077080364,-1398.26,0.00023878,2]
[311400146,1705077080374,-4395.36,0.00023878,2]
[311400147,1705077080385,-791.14,0.00023878,2]
[311400148,1705077080396,-500.0,0.00023879,2]
[311400149,1705077080409,-976.62,0.00023879,2]
[311400150,1705077080427,-500.0,0.00023879,2]
[311400151,1705077080440,-937.67,0.00023879,2]
[311400152,1705077080451,-500.0,0.00023879,2]
[311400153,1705077080462,-500.0,0.00023879,2]
[311400154,1705077080474,-500.0,0.00023879,2]
[311400155,1705077080484,-500.0,0.00023879,2]
[311400156,1705077080499,-500.0,0.00023879,2]
[311400157,1705077080511,-500.0,0.00023879,2]
[311400158,1705077080521,-500.0,0.00023879,2]
[311400159,1705077080531,-500.0,0.00023879,2]
[311400160,1705077080543,-500.0,0.00023879,2]
[311400161,1705077080554,-500.0,0.00023879,2]
[311400162,1705077080564,-500.0,0.00023879,2]
[311400163,1705077080574,-500.0,0.00023879,2]
[311400164,1705077080585,-500.0,0.00023879,2]
[311400165,1705077080595,-500.0,0.00023879,2]
[311400166,1705077080606,-500.0,0.00023879,2]
[311400167,1705077080618,-500.0,0.00023879,2]
[311400168,1705077080627,-500.0,0.00023879,2]
[311400169,1705077080637,-500.0,0.00023879,2]
[311400170,1705077080646,-500.0,0.00023879,2]
[311400171,1705077080655,-500.0,0.00023879,2]
[311400172,1705077080670,-1107.53,0.00023879,2]
[311400173,1705077080680,-500.0,0.00023879,2]
[311400174,1705077080690,-164.71,0.00023879,2]
[311400175,1705077080701,-608.63,0.00023879,2]
[311400176,1705077080711,-500.0,0.00023879,2]
[311400177,1705077080722,-500.0,0.00023879,2]
[311400178,1705077080732,-500.0,0.00023879,2]
[311400179,1705077080742,-500.0,0.00023879,2]
[311400180,1705077080752,-500.0,0.00023879,2]
[311400181,1705077080762,-500.0,0.00023879,2]
[311400182,1705077080772,-565.8,0.00023879,2]
[311400183,1705077080781,-500.0,0.00023879,2]
[311400184,1705077080792,-500.0,0.00023879,2]
[311400185,1705077080802,-500.0,0.00023879,2]
[311400186,1705077080813,-500.0,0.00023879,2]
[311400187,1705077080823,-632.67171057,0.00023879,2]
[311400188,1705077080833,-500.0,0.00023879,2]
[311400189,1705077080842,-523.56,0.00023879,2]
[311400190,1705077080852,-594.07,0.00023879,2]
[311400191,1705077080862,-1120.5,0.00023879,2]
[311400192,1705077080872,-571.6,0.00023879,2]
[311400193,1705077080883,-500.0,0.00023879,2]
[311400194,1705077080893,-500.0,0.00023879,2]
[311400195,1705077080902,-500.0,0.00023879,2]
[311400196,1705077080916,-500.0,0.00023879,2]
[311400197,1705077080926,-500.0,0.00023879,2]
[311400198,1705077080937,-500.0,0.00023879,2]
[311400199,1705077080946,-500.0,0.00023879,2]
[311400200,1705077080956,-500.0,0.00023879,2]
[311400201,1705077080966,-992.52,0.00023879,2]
[311400202,1705077080977,-605.97,0.00023879,2]
[311400203,1705077080986,-1474.92,0.00023879,2]
[311400204,1705077080996,-4177.28,0.00023879,2]
[311400205,1705077081006,-500.0,0.00023879,2]
[311400206,1705077081016,-500.0,0.00023879,2]
[311400207,1705077081025,-500.0,0.00023879,2]
[311400208,1705077081035,-1872.87,0.00023879,2]
[311400209,1705077081045,-500.0,0.00023879,2]
[311400210,1705077081055,-500.0,0.00023879,2]
[311400211,1705077081066,-500.0,0.00023879,2]
[311400212,1705077081076,-500.0,0.00023879,2]
[311400213,1705077081086,-1357.01,0.00023879,2]
[311400214,1705077081096,-10644.17,0.00023879,2]
[311400215,1705077081106,-500.0,0.00023879,2]
[311400216,1705077081116,-150.0,0.00023879,2]
[311400217,1705077081125,-500.0,0.00023879,2]
[311400218,1705077081135,-500.0,0.00023879,2]
[311400219,1705077081145,-500.0,0.00023879,2]
[311400220,1705077081155,-4961.7,0.00023879,2]
[311400221,1705077081170,-933.63,0.00023879,2]
[311400222,1705077081180,-500.0,0.00023879,2]
[311400223,1705077081190,-500.0,0.00023879,2]
[311400224,1705077081200,-636.31,0.00023879,2]
[311400225,1705077081210,-500.0,0.00023879,2]
[311400226,1705077081221,-500.0,0.00023879,2]
[311400227,1705077081231,-1195.27,0.00023879,2]
[311400228,1705077081240,-1808.5,0.00023879,2]
[311400229,1705077081250,-1852.8,0.00023879,2]
[311400230,1705077081260,-3071.92,0.00023879,2]
[311400231,1705077081270,-500.0,0.00023879,2]
[311400232,1705077081280,-2545.58,0.00023879,2]
[311400233,1705077081290,-500.0,0.00023879,2]
[311400234,1705077081299,-500.0,0.00023879,2]
[311400235,1705077081463,-500.0,0.00023879,2]
[311400236,1705077081476,-500.0,0.00023879,2]
[311400237,1705077081486,-2126.07,0.00023879,2]
[311400238,1705077081497,-500.0,0.00023879,2]
[311400239,1705077081507,-877.7,0.00023879,2]
[311400240,1705077081517,-1558.28,0.00023879,2]
[311400241,1705077081527,-500.0,0.00023879,2]
[311400242,1705077081538,-3767.3,0.00023879,2]
[311400243,1705077081548,-1845.89,0.00023879,2]
[311400244,1705077081558,-669.67,0.00023879,2]
[311400245,1705077081568,-500.0,0.00023879,2]
[311400246,1705077081578,-2228.6,0.00023879,2]
[311400247,1705077081588,-163.23158943,0.00023879,2]
[311400248,1705077081598,-500.0,0.00023879,2]
[311400249,1705077081608,-500.0,0.00023879,2]
[311400250,1705077081618,-846.0,0.00023879,2]
[311400251,1705077081628,-2416.09,0.00023879,2]
[311400252,1705077081638,-13698.75,0.00023879,2]
[311400253,1705077081648,-1205.25,0.00023879,2]
[311400254,1705077081658,-500.0,0.00023879,2]
[311400255,1705077081672,-500.0,0.00023879,2]
[311400256,1705077081681,-3731.97,0.00023879,2]
[311400257,1705077081690,-500.0,0.00023879,2]
[311400258,1705077081700,-500.0,0.00023879,2]
[311400259,1705077081710,-812.57,0.00023879,2]
[311400260,1705077081720,-500.0,0.00023879,2]
[311400261,1705077081730,-500.0,0.00023879,2]
[311400262,1705077081740,-2269.52,0.00023879,2]
[311400263,1705077081749,-500.0,0.00023879,2]
[311400264,1705077081759,-1615.37,0.00023879,2]
[311400265,1705077081769,-500.0,0.00023879,2]
[311400266,1705077081779,-946.07,0.00023879,2]
[311400267,1705077081789,-500.0,0.00023879,2]
[311400268,1705077081798,-500.0,0.00023879,2]
[311400269,1705077081808,-496.46554901,0.00023879,2]
[311400270,1705077081817,-636.34,0.00023879,2]
[311400271,1705077081827,-500.0,0.00023879,2]
[311400272,1705077081837,-656.56,0.00023879,2]
[311400273,1705077081846,-500.0,0.0002388,2]
[311400274,1705077081856,-500.0,0.0002388,2]
[311400275,1705077081865,-500.0,0.0002388,2]
[311400276,1705077081875,-500.0,0.0002388,2]
[311400277,1705077081884,-500.0,0.0002388,2]
[311400278,1705077081894,-500.0,0.0002388,2]
[311400279,1705077081903,-500.0,0.0002388,2]
[311400280,1705077081917,-600.96,0.0002388,2]
[311400281,1705077081927,-500.0,0.0002388,2]
[311400282,1705077081937,-500.0,0.0002388,2]
[311400283,1705077081946,-500.0,0.0002388,2]
[311400284,1705077081955,-500.0,0.0002388,2]
[311400285,1705077081965,-500.0,0.0002388,2]
[311400286,1705077081974,-500.0,0.0002388,2]
[311400287,1705077081984,-571.62,0.0002388,2]
[311400288,1705077081993,-500.0,0.0002388,2]
[311400289,1705077082003,-500.0,0.0002388,2]
[311400290,1705077082012,-1417.94,0.0002388,2]
[311400291,1705077082021,-500.0,0.0002388,2]
[311400292,1705077082030,-500.0,0.0002388,2]
[311400293,1705077082040,-500.0,0.0002388,2]
[311400294,1705077082050,-500.0,0.0002388,2]
[311400295,1705077082059,-965.53,0.0002388,2]
[311400296,1705077082068,-2036.95,0.0002388,2]
[311400297,1705077082078,-500.0,0.0002388,2]
[311400298,1705077082087,-500.0,0.0002388,2]
[311400299,1705077082096,-500.0,0.0002388,2]
[311400300,1705077082106,-500.0,0.0002388,2]
[311400301,1705077082115,-500.0,0.0002388,2]
[311400302,1705077082125,-500.0,0.0002388,2]
[311400303,1705077082134,-500.0,0.0002388,2]
[311400304,1705077082143,-500.0,0.0002388,2]
[311400305,1705077082152,-500.0,0.0002388,2]
[311400306,1705077082162,-500.0,0.0002388,2]
[311400307,1705077082178,-2001.96,0.0002388,2]
[311400308,1705077082188,-594.21,0.0002388,2]
[311400309,1705077082198,-683.21,0.0002388,2]
[311400310,1705077082208,-565.97,0.0002388,2]
[311400311,1705077082217,-500.0,0.0002388,2]
[311400312,1705077082227,-511.84,0.0002388,2]
[311400313,1705077082237,-1545.91,0.0002388,2]
[311400314,1705077082246,-1125.76,0.0002388,2]
[311400315,1705077082256,-500.0,0.0002388,2]
[311400316,1705077082266,-806.95,0.0002388,2]
[311400317,1705077082277,-500.0,0.0002388,2]
[311400318,1705077082287,-1118.05,0.0002388,2]
[311400319,1705077082297,-806.37,0.0002388,2]
[311400320,1705077082307,-4705.31,0.0002388,2]
[311400321,1705077082318,-4838.78,0.0002388,2]
[311400322,1705077082328,-973.61,0.0002388,2]
[311400323,1705077082339,-500.0,0.0002388,2]
[311400324,1705077082349,-3717.14,0.0002388,2]
[311400325,1705077082360,-964.46,0.0002388,2]
[311400326,1705077082371,-500.0,0.0002388,2]
[311400327,1705077082381,-500.0,0.0002388,2]
[311400328,1705077082391,-500.0,0.0002388,2]
[311400329,1705077082401,-628.62,0.0002388,2]
[311400330,1705077082410,-508.58,0.0002388,2]
[311400331,1705077082423,-1093.02,0.0002388,2]
[311400332,1705077082435,-2444.08,0.0002388,2]
[311400333,1705077082445,-1131.66,0.0002388,2]
[311400334,1705077082455,-829.37,0.0002388,2]
[311400335,1705077082465,-1941.71,0.0002388,2]
[311400336,1705077082474,-500.0,0.0002388,2]
[311400337,1705077082484,-923.95,0.0002388,2]
[311400338,1705077082496,-500.0,0.0002388,2]
[311400339,1705077082505,-500.0,0.0002388,2]
[311400340,1705077082515,-693.03,0.0002388,2]
[311400341,1705077082525,-500.0,0.0002388,2]
[311400342,1705077082537,-500.0,0.0002388,2]
[311400343,1705077082547,-500.0,0.0002388,2]
[311400344,1705077082556,-2777.7,0.0002388,2]
[311400345,1705077082565,-546.11,0.0002388,2]
[311400346,1705077082574,-500.0,0.0002388,2]
[311400347,1705077082585,-1599.45,0.0002388,2]
[311400348,1705077082594,-500.0,0.0002388,2]
[311400349,1705077082605,-533.41,0.0002388,2]
[311400350,1705077082615,-666.05,0.0002388,2]
[311400351,1705077082625,-500.0,0.0002388,2]
[311400352,1705077082634,-775.82,0.0002388,2]
[311400353,1705077082643,-1275.61,0.0002388,2]
[311400354,1705077082653,-500.0,0.0002388,2]
[311400355,1705077082662,-500.0,0.0002388,2]
[311400356,1705077082675,-723.72,0.0002388,2]
[311400357,1705077082685,-500.0,0.0002388,2]
[311400358,1705077082694,-500.0,0.0002388,2]
[311400359,1705077082704,-1101.03,0.0002388,2]
[311400360,1705077082714,-500.0,0.0002388,2]
[311400361,1705077082723,-2377.81,0.0002388,2]
[311400362,1705077082733,-174.91640772,0.0002388,2]
[311400363,1705077082743,-1960.6,0.0002388,2]
[311400364,1705077082753,-612.39,0.0002388,2]
[311400365,1705077082762,-500.0,0.0002388,2]
[311400366,1705077082772,-500.0,0.0002388,2]
[311400367,1705077082782,-500.0,0.0002388,2]
[311400368,1705077082791,-4932.76,0.0002388,2]
[311400369,1705077082801,-500.0,0.0002388,2]
[311400370,1705077082810,-555.03,0.0002388,2]
[311400371,1705077082820,-500.0,0.0002388,2]
[311400372,1705077082829,-2035.38,0.0002388,2]
[311400373,1705077082838,-500.0,0.0002388,2]
[311400374,1705077082849,-500.0,0.0002388,2]
[311400375,1705077082858,-500.0,0.0002388,2]
[311400376,1705077082868,-500.0,0.0002388,2]
[311400377,1705077082878,-595.74,0.0002388,2]
[311400378,1705077082888,-1056.92,0.0002388,2]
[311400379,1705077082898,-541.9,0.0002388,5]
[311400380,1705077082907,-500.0,0.0002388,2]
[311400381,1705077082918,-500.0,0.00023881,2]
[311400382,1705077082929,-615.9191811,0.00023881,2]
[311400383,1705077082938,-505.9718729,0.00023881,2]
[311400384,1705077082947,-500.0,0.00023881,2]
[311400385,1705077082956,-341.53119944,0.00023881,2]
[311400386,1705077082965,-500.0,0.00023881,2]
[311400387,1705077082974,-500.0,0.00023881,2]
[311400388,1705077082984,-500.0,0.00023881,2]
[311400389,1705077082993,-500.0,0.00023881,2]
[311400390,1705077083002,-500.0,0.00023881,2]
[311400391,1705077083012,-500.0,0.00023881,2]
[311400392,1705077083021,-500.0,0.00023881,2]
[311400393,1705077083030,-519.46,0.00023881,2]
[311400394,1705077083040,-516.68,0.00023881,2]
[311400395,1705077083049,-500.0,0.00023881,2]
[311400396,1705077083058,-500.0,0.00023881,2]
[311400397,1705077083067,-500.0,0.00023881,2]
[311400398,1705077083076,-1080.77,0.00023881,2]
[311400399,1705077083086,-500.0,0.00023881,2]
[311400400,1705077083095,-500.0,0.00023881,2]
[311400401,1705077083105,-422.71142761,0.00023881,2]
[311400402,1705077083114,-496.18915625,0.00023881,2]
[311400403,1705077083124,-500.0,0.00023881,2]
[311400404,1705077083133,-500.0,0.00023881,2]
[311400405,1705077083143,-710.97,0.00023881,2]
[311400406,1705077083152,-500.0,0.00023881,2]
[311400407,1705077083161,-500.0,0.00023881,2]
[311400408,1705077083173,-356.9414701,0.00023881,2]
[311400409,1705077083182,-500.0,0.00023881,2]
[311400410,1705077083191,-500.0,0.00023881,2]
[311400411,1705077083200,-1121.79,0.00023881,2]
[311400412,1705077083210,-500.0,0.00023881,2]
[311400413,1705077083219,-500.0,0.00023881,2]
[311400414,1705077083229,-500.0,0.00023881,2]
[311400415,1705077083239,-500.0,0.00023881,2]
[311400416,1705077083248,-500.0,0.00023881,2]
[311400417,1705077083257,-500.0,0.00023881,2]
[311400418,1705077083267,-500.0,0.00023881,2]
[311400419,1705077083276,-500.0,0.00023881,2]
[311400420,1705077083285,-500.0,0.00023881,2]
[311400421,1705077083294,-500.0,0.00023881,2]
[311400422,1705077083304,-625.58,0.00023881,2]